bitfinex-derivatives/quotes_SOLF0:USTF0_20251207
["timestamp","ask_amount","ask_price","bid_price","bid_amount"]
[1765068302215,4.38402202,132.52,132.51,6.97098603]
[1765068302404,110.01062202,132.52,132.48,9.36062623]
[1765068303417,110.01062202,132.52,132.49,0.05339051]
[1765068303717,6.7907,132.51,132.49,0.05339051]
[1765068304016,64.44,132.5,132.49,0.05339051]
[1765068304212,64.44,132.5,132.49,3.38339051]
[1765068306410,0.05304554,132.52,132.49,14.24401674]
[1765068306714,64.44,132.56,132.52,3.33]
[1765068306901,64.44,132.56,132.53,3.33]
[1765068307709,64.49341933,132.56,132.53,3.37831356]
[1765068318123,64.49341933,132.56,132.54,3.11]
[1765068318327,68.87744135,132.56,132.53,0.04831356]
[1765068319521,75.66584135,132.56,132.53,0.04831356]
[1765068319722,71.28181933,132.56,132.53,0.04831356]
[1765068323725,112.3922,132.55,132.53,0.04831356]
[1765068324026,109.98732202,132.55,132.49,9.35837941]
[1765068324213,109.98732202,132.55,132.48,9.35837941]
[1765068324419,6.7897,132.53,132.48,9.35837941]
[1765068324619,64.44,132.52,132.48,12.46837941]
[1765068325116,0.04912326,132.51,132.49,0.05053865]
[1765068328926,0.04912326,132.51,132.49,3.16053865]
[1765068330422,0.04912326,132.51,132.5,3.11]
[1765068341534,0.04912326,132.51,132.5,12.44964785]
[1765068349740,0.04912326,132.51,132.5,9.33964785]
[1765068349942,0.04912326,132.51,132.5,12.66964785]
[1765068350337,0.04912326,132.51,132.49,9.3901865]
[1765068350739,0.04912326,132.51,132.49,12.7201865]
[1765068355048,0.04912326,132.51,132.5,3.11]
[1765068362359,0.04912326,132.51,132.5,10.12068432]
[1765068363450,0.04912326,132.51,132.49,12.5001865]
[1765068363657,2.80521716,132.5,132.49,0.05053865]
[1765068364455,0.04912326,132.51,132.49,3.16053865]
[1765068364661,0.04912326,132.51,132.5,3.11]
[1765068365865,0.04912326,132.51,132.5,12.44964785]
[1765068373468,0.04912326,132.51,132.49,0.05053865]
[1765068373469,105.68332326,132.51,132.49,6.93187517]
[1765068373671,2.80521716,132.5,132.47,3.11]
[1765068373860,2.80521716,132.48,132.47,3.11]
[1765068374064,67.24521716,132.48,132.47,3.11]
[1765068387486,67.24521716,132.48,132.46,3.15977666]
[1765068387686,67.30142171,132.48,132.46,3.15977666]
[1765068392399,64.49620455,132.48,132.46,3.15977666]
[1765068403605,64.49620455,132.48,132.47,9.34088823]
[1765068404908,64.49620455,132.48,132.46,3.15977666]
[1765068405101,64.49620455,132.48,132.46,0.04977666]
[1765068415013,64.49620455,132.48,132.46,9.39066489]
[1765068416817,75.67566511,132.48,132.46,0.04977666]
[1765068418316,75.67566511,132.48,132.46,9.39066489]
[1765068420413,75.67566511,132.48,132.46,12.77066489]
[1765068420414,71.28870455,132.48,132.46,12.77066489]
[1765068420926,71.28870455,132.48,132.47,9.34088823]
[1765068421714,71.28870455,132.48,132.46,14.05799306]
[1765068425533,71.28870455,132.48,132.46,17.43799306]
[1765068425732,64.49620455,132.48,132.47,3.38]
[1765068426036,64.49620455,132.48,132.46,17.43799306]
[1765068430928,64.49620455,132.48,132.47,17.3882164]
[1765068431140,55.06500034,132.48,132.47,3.38]
[1765068432641,55.06500034,132.48,132.47,17.42072951]
[1765068433343,55.06500034,132.48,132.47,3.38]
[1765068438847,55.06500034,132.48,132.47,17.42072951]
[1765068442346,55.06500034,132.48,132.47,3.38]
[1765068442548,0.05620455,132.48,132.47,3.38]
[1765068451760,0.05620455,132.48,132.47,12.72581327]
[1765068452258,0.05620455,132.48,132.47,9.34581327]
[1765068452447,0.05620455,132.48,132.46,0.04977666]
[1765068454057,4.38696056,132.47,132.46,0.04977666]
[1765068454463,2.80866258,132.47,132.46,0.04977666]
[1765068456166,67.22866258,132.47,132.46,0.04977666]
[1765068456864,2.80866258,132.45,132.41,9.34581327]
[1765068457056,2.80866258,132.42,132.41,9.34581327]
[1765068459360,2.80866258,132.42,132.4,12.64120146]
[1765068460959,2.80866258,132.42,132.4,3.29538819]
[1765068461565,2.80866258,132.42,132.4,12.64120146]
[1765068462260,2.80866258,132.42,132.4,3.29538819]
[1765068462459,2.80866258,132.42,132.4,12.64120146]
[1765068463266,2.80866258,132.42,132.4,3.29538819]
[1765068464868,2.80866258,132.42,132.4,0.05538819]
[1765068465270,2.80866258,132.42,132.4,3.29538819]
[1765068478080,71.28831987,132.43,132.4,3.29538819]
[1765068483285,6.7958,132.41,132.4,0.05538819]
[1765068485598,6.7966,132.4,132.35,3.12]
[1765068485799,2.80866258,132.38,132.35,3.12]
[1765068486190,2.80866258,132.36,132.33,3.12]
[1765068486385,64.44,132.35,132.33,3.12]
[1765068486590,64.49803377,132.35,132.33,3.1694994]
[1765068486990,64.49803377,132.35,132.33,0.0494994]
[1765068491003,2.80866258,132.34,132.33,0.0494994]
[1765068496904,64.49803377,132.35,132.33,3.1694994]
[1765068497511,67.30669635,132.35,132.33,3.1694994]
[1765068499204,67.30669635,132.35,132.33,0.0494994]
[1765068501409,67.30669635,132.35,132.33,3.2494994]
[1765068501705,74.10589635,132.35,132.33,0.0494994]
[1765068504407,179.86859635,132.35,132.33,0.0494994]
[1765068507013,177.05993377,132.35,132.33,0.0494994]
[1765068507312,2.80866258,132.34,132.33,0.0494994]
[1765068513318,6.8008,132.32,132.27,3.2]
[1765068513518,67.28866258,132.31,132.27,3.2]
[1765068514617,0.05795108,132.3,132.29,3.2]
[1765068519429,0.05795108,132.3,132.28,0.05491274]
[1765068520622,6.85975108,132.3,132.28,0.05491274]
[1765068520926,6.85975108,132.3,132.28,3.25491274]
[1765068521325,6.85975108,132.3,132.28,0.05491274]
[1765068521523,112.66205108,132.3,132.28,0.05491274]
[1765068522123,4.39815985,132.29,132.28,0.05491274]
[1765068526534,6.85975108,132.3,132.28,3.25491274]
[1765068542641,0.05795108,132.3,132.28,3.25491274]
[1765068546442,0.05795108,132.3,132.29,3.19]
[1765068549546,0.05795108,132.3,132.28,12.59072601]
[1765068549841,0.05795108,132.3,132.28,0.05491274]
[1765068550047,4.39815985,132.29,132.28,0.05491274]
[1765068551840,11.20055985,132.29,132.24,12.53581327]
[1765068552040,4.39815985,132.27,132.24,12.53581327]
[1765068552446,4.39815985,132.25,132.22,9.34581327]
[1765068552647,4.39815985,132.23,132.2,3.19]
[1765068552848,4.39815985,132.21,132.2,0.05022807]
[1765068553046,68.87815985,132.21,132.2,3.24022807]
[1765068553949,64.48,132.21,132.2,3.24022807]
[1765068556047,64.48,132.21,132.2,12.58604134]
[1765068558144,64.48,132.21,132.2,3.24022807]
[1765068559355,64.48,132.21,132.2,0.05022807]
[1765068563859,64.48,132.21,132.2,3.24022807]
[1765068564249,64.48,132.21,132.2,12.58604134]
[1765068569264,0.05717121,132.23,132.21,3.19]
[1765068576772,2.87541587,132.23,132.21,3.19]
[1765068585375,0.05717121,132.23,132.21,3.19]
[1765068585577,0.05717121,132.23,132.22,3.19]
[1765068587275,0.05717121,132.23,132.22,12.53581327]
[1765068587480,0.05717121,132.23,132.21,3.05]
[1765068588773,0.05717121,132.23,132.2,3.10022807]
[1765068590376,6.86257121,132.23,132.2,3.10022807]
[1765068590582,2.81824466,132.22,132.2,0.05022807]
[1765068590781,64.52,132.21,132.2,0.05022807]
[1765068596989,64.52,132.21,132.2,3.10022807]
[1765068597688,61.14,132.21,132.2,3.10022807]
[1765068600393,0.05717121,132.23,132.2,3.10022807]
[1765068600584,0.05717121,132.23,132.22,12.74282784]
[1765068606697,0.05717121,132.23,132.22,3.32]
[1765068613100,0.05717121,132.23,132.22,17.36072951]
[1765068613286,69.43824466,132.25,132.23,3.32]
[1765068613287,64.52,132.25,132.23,3.32]
[1765068613491,4.91824466,132.28,132.25,3.32]
[1765068613688,4.91824466,132.28,132.26,3.32]
[1765068614394,4.97404806,132.28,132.26,3.37429799]
[1765068614895,0.0558034,132.28,132.26,12.79341518]
[1765068615095,0.0558034,132.28,132.27,3.32]
[1765068630416,67.31824466,132.31,132.27,12.73911719]
[1765068630609,67.31824466,132.31,132.28,3.37]
[1765068631307,67.36918501,132.31,132.28,3.37]
[1765068632011,69.46918501,132.31,132.28,3.37]
[1765068638337,66.65094035,132.31,132.28,3.37]
[1765068641434,0.05094035,132.31,132.28,12.78911719]
[1765068641636,0.05094035,132.31,132.3,3.37]
[1765068641836,0.05094035,132.31,132.3,12.78911719]
[1765068642634,0.05094035,132.31,132.3,19.59051719]
[1765068643133,0.05094035,132.31,132.29,0.05439067]
[1765068643134,2.15094035,132.31,132.29,0.05439067]
[1765068643328,0.05094035,132.31,132.29,3.42439067]
[1765068648342,0.05094035,132.31,132.29,12.84350786]
[1765068648542,0.05094035,132.31,132.3,3.05]
[1765068648940,2.1,132.33,132.3,3.05]
[1765068649942,2.15803235,132.33,132.3,3.05]
[1765068654338,2.15803235,132.33,132.3,12.46911719]
[1765068654545,2.15803235,132.33,132.31,3.31]
[1765068656738,0.05803235,132.33,132.31,3.31]
[1765068656941,0.05803235,132.33,132.31,12.72911719]
[1765068657244,2.14803235,132.33,132.31,12.72911719]
[1765068659245,2.14803235,132.33,132.32,3.31]
[1765068659444,2.14803235,132.33,132.31,12.72911719]
[1765068660150,0.05803235,132.33,132.32,3.31]
[1765068660349,0.05803235,132.33,132.32,12.72911719]
[1765068661645,2.09,132.35,132.32,12.72911719]
[1765068661843,2.09,132.35,132.33,3.31]
[1765068662745,2.14334841,132.35,132.33,3.36391212]
[1765068663747,2.14334841,132.35,132.33,0.05391212]
[1765068665742,2.14334841,132.35,132.33,3.36391212]
[1765068668254,2.14334841,132.35,132.33,9.47302931]
[1765068670357,2.14334841,132.35,132.33,12.78302931]
[1765068672754,0.05334841,132.35,132.34,3.31]
[1765068675456,0.05334841,132.35,132.34,12.72911719]
[1765068676559,0.05334841,132.35,132.34,3.31]
[1765068676860,0.05334841,132.35,132.34,12.72911719]
[1765068677354,0.05334841,132.35,132.34,3.31]
[1765068681769,0.05334841,132.35,132.34,12.72911719]
[1765068685867,2.14334841,132.35,132.33,9.47302931]
[1765068686067,2.14334841,132.35,132.33,0.05391212]
[1765068686470,2.09,132.34,132.3,12.75911719]
[1765068687475,2.09,132.34,132.31,0.05461513]
[1765068687671,2.09,132.34,132.31,3.39461513]
[1765068689588,66.53,132.33,132.31,3.39461513]
[1765068689787,64.44,132.33,132.32,3.34]
[1765068689980,64.44,132.33,132.32,12.75911719]
[1765068691878,2.14334841,132.35,132.33,3.34]
[1765068696184,0.05334841,132.35,132.33,3.34]
[1765068696386,0.05334841,132.35,132.34,12.75911719]
[1765068696591,0.05334841,132.35,132.34,12.73470696]
[1765068697787,0.05334841,132.35,132.34,3.34]
[1765068698382,0.05334841,132.35,132.34,12.73751895]
[1765068702093,0.05334841,132.35,132.34,3.34]
[1765068703797,0.05334841,132.35,132.34,12.73626853]
[1765068710999,2.15334841,132.35,132.33,9.39626853]
[1765068711198,0.05334841,132.35,132.34,3.08]
[1765068711590,4.96560388,132.35,132.34,3.08]
[1765068713205,0.05334841,132.35,132.34,12.47626853]
[1765068725313,64.44,132.37,132.35,3.31]
[1765068725809,64.44,132.37,132.36,3.31]
[1765068726014,4.90225547,132.4,132.37,3.31]
[1765068726415,4.9529946,132.4,132.37,3.35839515]
[1765068726615,0.05073913,132.4,132.37,3.35839515]
[1765068726808,0.05073913,132.4,132.38,3.31]
[1765068727516,0.05073913,132.4,132.39,12.70626853]
[1765068730211,0.05073913,132.4,132.39,3.31]
[1765068733225,170.1186,132.46,132.4,3.31]
[1765068733226,2.14,132.45,132.4,3.31]
[1765068734225,0.05524004,132.44,132.42,3.31]
[1765068735219,2.86749551,132.44,132.42,3.31]
[1765068737719,0.05524004,132.44,132.42,3.31]
[1765068741923,2.14,132.5,132.45,3.31]
[1765068742226,5.89225547,132.49,132.45,3.31]
[1765068742922,0.05296646,132.48,132.47,3.31]
[1765068747716,5.89225547,132.53,132.47,3.31]
[1765068748623,0.05038326,132.51,132.5,3.31]
[1765068750117,3.13038326,132.51,132.49,0.04783402]
[1765068750323,5.94263873,132.51,132.49,0.04783402]
[1765068750520,3.08,132.5,132.49,0.04783402]
[1765068751924,3.08,132.49,132.43,3.31]
[1765068752135,3.08,132.44,132.41,3.31]
[1765068752522,2.81225547,132.43,132.41,3.31]
[1765068752830,2.87031129,132.43,132.41,3.36261629]
[1765068756734,3.08,132.42,132.41,0.05261629]
[1765068756939,3.08,132.42,132.38,3.31]
[1765068757932,3.08,132.42,132.39,0.05260237]
[1765068763944,3.08,132.4,132.39,0.05260237]
[1765068765344,67.56,132.41,132.39,3.36260237]
[1765068770646,64.48,132.41,132.39,3.36260237]
[1765068770840,3.14,132.4,132.39,0.05260237]
[1765068777348,3.19805582,132.43,132.39,3.37260237]
[1765068791768,3.19805582,132.43,132.39,12.7688709]
[1765068791957,3.19805582,132.43,132.4,3.25]
[1765068793164,3.19805582,132.43,132.4,12.64626853]
[1765068793360,3.19805582,132.43,132.41,3.25]
[1765068795265,3.19805582,132.43,132.41,12.64626853]
[1765068795562,0.05805582,132.43,132.42,12.64626853]
[1765068814172,3.09805582,132.43,132.42,9.39626853]
[1765068814382,3.04,132.42,132.39,0.05260237]
[1765068814580,3.04,132.39,132.36,3.23]
[1765068815575,3.04,132.38,132.36,3.27854584]
[1765068816280,3.09373382,132.39,132.36,3.27854584]
[1765068817682,0.05373382,132.39,132.37,3.23]
[1765068817878,3.09373382,132.39,132.37,3.23]
[1765068821884,3.09373382,132.39,132.37,17.27072951]
[1765068825381,3.09373382,132.39,132.38,3.23]
[1765068828582,3.09373382,132.39,132.37,17.31072951]
[1765068828883,3.09373382,132.39,132.37,3.27]
[1765068830686,58.08005909,132.4,132.37,3.27]
[1765068831686,58.13724249,132.4,132.37,3.27]
[1765068832687,61.23724249,132.4,132.37,3.27]
[1765068836088,3.1,132.39,132.37,3.27]
[1765068836391,61.23724249,132.4,132.37,3.27]
[1765068837093,3.1,132.39,132.37,3.27]
[1765068839196,61.23724249,132.4,132.37,3.27]
[1765068841595,58.13724249,132.4,132.37,3.27]
[1765068842488,61.28724249,132.4,132.37,3.27]
[1765068842889,61.28724249,132.4,132.38,3.23]
[1765068844298,61.28724249,132.4,132.39,9.36258595]
[1765068845700,3.15,132.39,132.37,12.59258595]
[1765068845992,3.15,132.39,132.38,12.59258595]
[1765068846196,61.28724249,132.4,132.38,12.59258595]
[1765068848207,3.15,132.39,132.38,12.59258595]
[1765068851300,3.15,132.39,132.38,3.23]
[1765068851798,3.15,132.39,132.38,12.60078618]
[1765068852503,58.13724249,132.4,132.39,3.23]
[1765068852700,61.28724249,132.4,132.39,3.23]
[1765068856400,3.15,132.39,132.38,9.37078618]
[1765068859505,3.15,132.39,132.37,17.14072951]
[1765068860312,3.15,132.39,132.38,3.1]
[1765068862109,58.13724249,132.4,132.38,3.1]
[1765068862312,58.13724249,132.4,132.39,3.1]
[1765068862609,0.0571834,132.4,132.39,3.1]
[1765068865116,0.0571834,132.4,132.39,17.14072951]
[1765068868707,0.0571834,132.4,132.39,3.1]
[1765068869110,0.0571834,132.4,132.39,17.14072951]
[1765068869311,0.0571834,132.4,132.39,3.1]
[1765068870821,0.0571834,132.4,132.39,17.14072951]
[1765068875225,0.0571834,132.4,132.39,3.1]
[1765068894347,3.1371834,132.4,132.38,14.04072951]
[1765068894547,3.1371834,132.4,132.39,9.38981364]
[1765068895234,3.1371834,132.4,132.39,12.72981364]
[1765068896144,3.1371834,132.4,132.39,3.34]
[1765068897349,3.1371834,132.4,132.38,14.04072951]
[1765068897547,3.1371834,132.4,132.39,9.39667105]
[1765068898946,3.1371834,132.4,132.38,9.39667105]
[1765068899840,3.1371834,132.4,132.39,9.39667105]
[1765068901448,3.1371834,132.4,132.38,9.39667105]
[1765068901649,3.1371834,132.4,132.38,12.47667105]
[1765068907046,67.5571834,132.4,132.38,12.47667105]
[1765068907453,3.38,132.39,132.38,9.39667105]
[1765068907855,3.38,132.39,132.38,12.47667105]
[1765068908055,3.38,132.39,132.38,9.39667105]
[1765068908354,3.38,132.39,132.37,12.47667105]
[1765068911457,3.38,132.39,132.37,3.08]
[1765068912053,3.38,132.39,132.37,12.47667105]
[1765068912465,3.38,132.39,132.38,3.08]
[1765068912659,67.8571834,132.4,132.38,3.08]
[1765068915264,64.4771834,132.4,132.38,3.08]
[1765068916063,67.8571834,132.4,132.38,3.08]
[1765068918758,64.4771834,132.4,132.38,3.08]
[1765068918966,64.4771834,132.4,132.39,3.27]
[1765068919661,67.5971834,132.4,132.39,3.27]
[1765068921864,67.5971834,132.4,132.37,9.39667105]
[1765068922064,67.5971834,132.4,132.38,3.27]
[1765068923271,64.4771834,132.4,132.38,3.27]
[1765068924867,64.4771834,132.4,132.39,3.27]
[1765068927871,67.5971834,132.4,132.39,3.27]
[1765068928769,64.4771834,132.4,132.39,3.27]
[1765068929168,67.5971834,132.4,132.39,3.27]
[1765068929571,64.4771834,132.4,132.39,3.27]
[1765068929871,67.5971834,132.4,132.39,3.27]
[1765068932172,67.5971834,132.4,132.39,12.66667105]
[1765068935876,67.5971834,132.4,132.39,9.39667105]
[1765068936970,3.12,132.39,132.38,9.39667105]
[1765068937168,3.12,132.39,132.37,8.33079595]
[1765068939276,3.12,132.39,132.36,0.04854584]
[1765068943086,9.9171,132.39,132.36,0.04854584]
[1765068943384,3.12,132.38,132.36,0.04854584]
[1765068944382,5.93241494,132.37,132.36,0.04854584]
[1765068947388,3.12,132.37,132.36,0.04854584]
[1765068956596,5.93241494,132.37,132.36,0.04854584]
[1765068960201,70.35241494,132.37,132.36,0.04854584]
[1765068962097,70.35241494,132.37,132.36,3.31854584]
[1765068962402,70.35241494,132.37,132.36,0.04854584]
[1765068981018,64.42,132.37,132.36,3.31854584]
[1765068982118,64.42,132.37,132.36,17.35927535]
[1765068984823,67.56,132.37,132.36,14.08927535]
[1765068987121,67.56,132.37,132.36,3.31854584]
[1765068987427,64.42,132.37,132.36,3.31854584]
[1765068989422,67.56,132.37,132.36,3.31854584]
[1765068992031,67.56,132.37,132.36,12.71848675]
[1765068995729,67.56,132.37,132.36,9.44848675]
[1765068998729,67.56,132.37,132.36,0.04854584]
[1765069010645,67.56,132.37,132.36,9.44848675]
[1765069014744,67.56,132.37,132.36,0.04854584]
[1765069015244,67.56,132.37,132.36,9.44848675]
[1765069022250,67.56,132.37,132.36,0.04854584]
[1765069022851,64.42,132.37,132.36,3.36854584]
[1765069023051,3.2,132.39,132.37,3.32]
[1765069023241,3.2,132.39,132.37,12.72323064]
[1765069023847,3.2,132.39,132.37,9.40323064]
[1765069024251,3.2,132.39,132.38,9.40323064]
[1765069032062,3.2,132.39,132.36,12.77177648]
[1765069032663,3.2,132.39,132.37,3.32]
[1765069035469,3.2,132.39,132.37,12.72323064]
[1765069036565,3.2,132.39,132.37,3.32]
[1765069037764,3.3771834,132.4,132.37,12.72323064]
[1765069037972,3.32,132.39,132.37,12.72323064]
[1765069047084,3.32,132.39,132.37,9.40323064]
[1765069048786,3.32,132.39,132.37,12.76323064]
[1765069049186,3.3771834,132.4,132.38,3.36]
[1765069049383,0.0571834,132.4,132.38,3.36]
[1765069050287,0.0571834,132.4,132.38,12.76323064]
[1765069050586,0.0571834,132.4,132.39,12.76323064]
[1765069051290,0.0571834,132.4,132.39,3.36]
[1765069053290,0.0571834,132.4,132.39,12.76323064]
[1765069072000,0.0571834,132.4,132.39,3.36]
[1765069076804,0.0571834,132.4,132.39,17.40072951]
[1765069081406,0.0571834,132.4,132.39,3.36]
[1765069081605,3.1,132.48,132.41,108.831]
[1765069081811,5.9095288,132.49,132.46,3.12]
[1765069082203,3.1,132.48,132.46,3.12]
[1765069082708,3.15640897,132.48,132.46,3.175363]
[1765069083809,3.1,132.47,132.46,0.055363]
[1765069087498,4.6,132.47,132.46,0.055363]
[1765069087699,68.94,132.47,132.46,0.055363]
[1765069088815,67.44,132.47,132.46,0.055363]
[1765069107025,64.34,132.47,132.46,3.255363]
[1765069107628,67.48,132.47,132.46,3.255363]
[1765069107828,67.48,132.47,132.46,0.055363]
[1765069108527,64.34,132.47,132.46,3.255363]
[1765069112224,67.48,132.47,132.46,3.255363]
[1765069113037,67.48,132.47,132.46,0.055363]
[1765069118538,67.48,132.47,132.46,3.255363]
[1765069118725,67.48,132.47,132.46,12.60755326]
[1765069119932,67.48,132.47,132.46,3.255363]
[1765069122032,67.48,132.47,132.46,0.055363]
[1765069133142,71.8678412,132.47,132.46,0.055363]
[1765069138153,3.26,132.45,132.41,9.35219026]
[1765069138356,3.26,132.43,132.41,9.35219026]
[1765069139253,3.31277237,132.43,132.41,9.40376292]
[1765069140054,3.31277237,132.43,132.41,0.05157266]
[1765069140742,7.70061357,132.43,132.41,0.05157266]
[1765069140942,3.26,132.42,132.41,0.05157266]
[1765069143245,3.26,132.4,132.37,23.38047565]
[1765069143446,3.26,132.38,132.37,9.35219026]
[1765069144150,3.26,132.38,132.36,9.35219026]
[1765069144353,3.31419829,132.38,132.36,12.68645467]
[1765069147160,3.31419829,132.38,132.36,3.33426441]
[1765069159358,3.31419829,132.38,132.36,12.68645467]
[1765069159359,0.05419829,132.38,132.36,12.68645467]
[1765069159569,0.05419829,132.38,132.37,3.3]
[1765069162064,0.05419829,132.38,132.37,12.65219026]
[1765069162466,0.05419829,132.38,132.37,3.3]
[1765069163267,0.05419829,132.38,132.37,12.65219026]
[1765069165568,0.05419829,132.38,132.36,12.70645467]
[1765069165569,3.31419829,132.38,132.36,12.70645467]
[1765069165967,3.31419829,132.38,132.37,3.3]
[1765069166569,0.05419829,132.38,132.37,3.3]
[1765069167374,0.05419829,132.38,132.37,12.65219026]
[1765069172063,0.05419829,132.38,132.37,3.3]
[1765069176278,0.05419829,132.38,132.37,12.65219026]
[1765069181391,0.05419829,132.38,132.37,3.3]
[1765069182387,74.4155,132.42,132.38,3.3]
[1765069182595,74.4155,132.42,132.4,3.3]
[1765069183492,74.47039758,132.42,132.4,3.35097404]
[1765069184395,3.26,132.41,132.4,3.35097404]
[1765069186098,105.7399,132.38,132.35,1.30448539]
[1765069186300,211.4599,132.39,132.32,22.04839263]
[1765069186301,110.1414412,132.36,132.32,3.3]
[1765069187298,0.05275246,132.35,132.33,3.24787785]
[1765069187594,0.05275246,132.35,132.33,3.24697535]
[1765069188393,2.86613793,132.35,132.33,3.24697535]
[1765069194607,2.86613793,132.35,132.33,0.05697535]
[1765069198412,2.86613793,132.35,132.33,3.24697535]
[1765069200114,0.05275246,132.35,132.33,3.24697535]
[1765069200311,2.86600568,132.35,132.33,3.24697535]
[1765069202508,0.05275246,132.35,132.33,3.24697535]
[1765069208009,64.36,132.37,132.33,109.02097535]
[1765069208210,64.36,132.37,132.34,3.19]
[1765069209020,64.41583221,132.37,132.34,3.19]
[1765069209620,64.41583221,132.37,132.35,3.19]
[1765069212119,64.41583221,132.37,132.36,3.19]
[1765069222214,67.22908543,132.37,132.34,3.25]
[1765069222417,2.81325322,132.35,132.33,6.85677535]
[1765069227334,2.81325322,132.35,132.33,10.10677535]
[1765069229032,2.81325322,132.35,132.34,3.25]
[1765069229336,0.05583221,132.37,132.36,3.25]
[1765069230019,0.05583221,132.37,132.35,6.7989]
[1765069233534,0.05583221,132.37,132.35,10.0489]
[1765069235041,0.05583221,132.37,132.35,3.25]
[1765069236135,0.05583221,132.37,132.34,3.25]
[1765069240539,2.81325322,132.36,132.33,3.30697535]
[1765069240730,67.27325322,132.36,132.33,3.30697535]
[1765069242734,67.27325322,132.36,132.33,0.05697535]
[1765069247050,74.07185322,132.36,132.33,0.05697535]
[1765069248346,71.2586,132.36,132.33,0.05697535]
[1765069251757,71.2586,132.36,132.33,3.41697535]
[1765069254056,71.2586,132.36,132.33,0.05697535]
[1765069256055,71.2586,132.36,132.33,3.41697535]
[1765069261762,64.46,132.36,132.33,3.41697535]
[1765069265762,64.46,132.36,132.34,3.21]
[1765069266368,0.05583221,132.37,132.34,3.21]
[1765069266664,0.05583221,132.37,132.35,3.21]
[1765069267970,64.46,132.4,132.36,3.21]
[1765069268760,64.46,132.4,132.37,0.0483632]
[1765069268761,0.04900775,132.39,132.37,0.0483632]
[1765069268963,0.04900775,132.39,132.38,3.21]
[1765069272069,64.46,132.44,132.38,3.21]
[1765069272971,0.04827538,132.42,132.41,3.21]
[1765069285874,64.46,132.44,132.43,3.13]
[1765069286266,90.62,132.55,132.44,3.13]
[1765069286267,4.39562678,132.49,132.44,3.13]
[1765069286467,64.4,132.48,132.44,3.13]
[1765069286666,64.4,132.48,132.46,3.13]
[1765069286879,64.43503073,132.48,132.46,3.18709731]
[1765069302287,64.43503073,132.48,132.46,0.05709731]
[1765069303091,64.43503073,132.48,132.46,3.18709731]
[1765069304488,64.43503073,132.48,132.47,3.13]
[1765069305294,0.03503073,132.48,132.47,3.13]
[1765069310298,0.03503073,132.48,132.46,10.16999731]
[1765069310507,0.03503073,132.48,132.46,0.05709731]
[1765069314406,0.03503073,132.48,132.46,3.37709731]
[1765069318303,2.84201097,132.48,132.46,0.05709731]
[1765069320504,2.84201097,132.48,132.46,3.31709731]
[1765069321607,0.03503073,132.48,132.46,3.31709731]
[1765069327308,2.84201097,132.48,132.46,0.05709731]
[1765069329104,64.38,132.47,132.46,0.05709731]
[1765069336508,105.6739,132.46,132.38,17.30384321]
[1765069336713,2.80698024,132.43,132.38,3.26]
[1765069336908,67.18698024,132.43,132.38,3.26]
[1765069337406,2.80698024,132.41,132.39,0.05741662]
[1765069340510,6.84769462,132.42,132.36,3.12]
[1765069340814,2.80698024,132.41,132.36,3.12]
[1765069341616,2.80698024,132.41,132.37,3.17441781]
[1765069341817,0.05682623,132.4,132.37,3.17441781]
[1765069342118,64.4,132.39,132.37,3.17441781]
[1765069354120,64.4,132.39,132.37,9.97201781]
[1765069354326,64.4,132.39,132.38,3.12]
[1765069357331,64.4,132.39,132.37,6.85201781]
[1765069357531,64.4,132.39,132.37,9.97201781]
[1765069358837,64.4,132.39,132.38,3.12]
[1765069359624,64.4,132.39,132.37,9.97201781]
[1765069361536,64.4,132.39,132.38,3.12]
[1765069361731,0.05682623,132.4,132.38,9.9171]
[1765069361925,0.05682623,132.4,132.39,3.12]
[1765069370431,0.05682623,132.4,132.37,3.16441781]
[1765069371445,2.80698024,132.39,132.37,0.05441781]
[1765069372344,0.05682623,132.4,132.37,0.05441781]
[1765069373947,0.05682623,132.4,132.37,3.15441781]
[1765069374248,4.39284544,132.39,132.37,0.05441781]
[1765069375743,0.05682623,132.4,132.37,0.05441781]
[1765069376647,0.05682623,132.4,132.37,3.15441781]
[1765069399581,0.05682623,132.4,132.37,0.05441781]